[Event "FIDE Open Sachove Univerzity QCC"]
[Site "Ceske Budejovice"]
[Date "2020.07.01"]
[Round "1.5"]
[White "Svetly, Jiri"]
[Black "Bastyr, Pavel"]
[Result "1/2-1/2"]
[ECO "E32"]
[WhiteElo "1835"]
[BlackElo "1439"]
[Annotator "NA RC"]
[PlyCount "105"]
[EventDate "2020.07.01"]
[EventType "swiss"]
[EventCountry "CZE"]
[SourceTitle "playchess.com"]
[Source "ChessBase"]
[SourceQuality "1"]
[TimeControl "40/5400+30:1800+30"]

1. d4 {[%emt 0:00:00]} Nf6 {[%emt 0:00:00]} 2. c4 {[%emt 0:00:13]} e6 {[%emt 0:00:00]} 3. Nc3 {[%emt 0:00:23]} Bb4 {[%emt 0:00:00]} 4. Qc2 {[%emt 0:00:39]} O-O {[%emt 0:00:03]} 5. e4 {[%emt 0:01:05]} d5 {[%emt 0:03:49]} 6. e5 {[%emt 0:05:16] E32: Nimzo-Indian: Classical (4 Qc2): 4...0-0.} Nfd7 {[%emt 0:02:53]} 7. Bd3 {[%emt 0:02:59] [#]} g6 $146 {[%emt 0:00:27]} ({Predecessor:} 7... h6 8. a3 Bxc3+ 9. bxc3 dxc4 10. Bxc4 c5 11. Nf3 Nc6 12. Be3 Qa5 13. O-O Nb6 {1-0 (37) Wang,X (1594)-Milare,T (1789) Willingen 2017}) 8. Bh6 {[%emt 0:03:30]} Re8 {[%emt 0:00:15]} 9. c5 {[%emt 0:01:29]} b6 {[%emt 0:00:58]} 10. cxb6 {[%emt 0:02:37]} axb6 {[%emt 0:02:40]} 11. Nf3 {[%emt 0:00:30]} c5 {[%emt 0:00:13]} 12. O-O {[%emt 0:04:04]} Nc6 {[%emt 0:12:09]} 13. Bg5 {[%emt 0:13:15]} Nxd4 {[%emt 0:04:57]} 14. Nxd4 {[%emt 0:03:38]} Qxg5 {[%emt 0:00:18]} 15. f4 {[%emt 0:02:43]} Qh6 {[%emt 0:02:15]} 16. Ndb5 {[%emt 0:11:14]} Rd8 {[%emt 0:07:53]} 17. Nc7 {[%emt 0:09:39]} Ra5 {[%emt 0:02:23]} 18. a3 {[%emt 0:03:25]} Bxc3 {[%emt 0:00:22]} 19. Qxc3 {[%emt 0:02:37]} c4 {[%emt 0:00:09]} 20. b4 {[%emt 0:01:11]} cxb3 {[%emt 0:00:23]} 21. Qxb3 {[%emt 0:00:31]} Rc5 {[%emt 0:00:15]} 22. Nb5 {[%emt 0:02:51]} Ba6 {[%emt 0:08:16]} 23. Nd6 {[%emt 0:00:58]} Bxd3 {[%emt 0:00:13]} 24. Qxd3 {[%emt 0:00:08]} Ra8 {[%emt 0:03:09]} 25. Qb3 {[%emt 0:05:44]} Rc6 {[%emt 0:08:22]} 26. Qb5 {[%emt 0:01:05]} Rc7 {[%emt 0:00:41]} 27. a4 {[%emt 0:03:11]} Ra5 {[%emt 0:02:01]} 28. Qb4 {[%emt 0:01:01]} Qf8 {[%emt 0:06:24]} 29. g4 {[%emt 0:05:58]} Rc4 {[%emt 0:07:53]} 30. Qb3 {[%emt 0:00:57] [#]} Rc6 $1 {[%emt 0:05:11]} 31. Qe3 {[%emt 0:02:25]} Qa8 {[%emt 0:03:15]} 32. f5 {[%emt 0:03:29]} d4 {[%emt 0:07:53]} ({Inferior is} 32... Rxa4 33. Rxa4 Qxa4 34. h3 $11) 33. Qxd4 {[%emt 0:00:56]} Rxe5 {[%emt 0:00:34]} 34. Nxf7 {[%emt 0:00:36]} Rc2 {[%emt 0:06:01]} 35. Rf2 {[%emt 0:02:47]} Rxf2 {[%emt 0:02:45]} 36. Kxf2 {[%emt 0:00:24]} Qd5 {[%emt 0:00:29]} 37. Qxd5 {[%emt 0:00:43]} Rxd5 {[%emt 0:00:13]} 38. fxe6 {[%emt 0:00:22]} Nc5 {[%emt 0:00:45]} 39. a5 {[%emt 0:03:09] [#]} (39. h4 $11) 39... bxa5 $1 {[%emt 0:00:24]} 40. Nh6+ {[%emt 0:00:37]} Kg7 {[%emt 0:00:16]} (40... Kf8 $17 41. Kf3 a4) 41. e7 {[%emt 0:02:28]} Ne4+ {[%emt 0:03:34]} 42. Kg2 {[%emt 0:09:04]} (42. Kf3 $11 {remains equal.} Nd6 43. g5) 42... Nd6 {[%emt 0:00:15]} 43. Re1 {[%emt 0:02:16]} (43. Rf1 $17 Kxh6 44. Rf8) 43... Ne8 {[%emt 0:00:36]} (43... Kxh6 $19 44. e8=Q Nxe8 45. Rxe8 Kg5) 44. Rf1 {[%emt 0:01:04]} Re5 {[%emt 0:03:11]} 45. Nf7 {[%emt 0:02:06]} Rxe7 {[%emt 0:00:10]} 46. Ng5 $19 {[%emt 0:00:15]} (46. Nd8 $17 {might work better.}) 46... Nd6 {[%emt 0:05:17]} 47. Ra1 {[%emt 0:03:06]} Ra7 {[%emt 0:02:56]} 48. Ra4 {[%emt 0:00:51]} Nc8 {[%emt 0:03:22]} 49. Ne6+ {[%emt 0:01:44]} Kg8 {[%emt 0:02:40]} 50. g5 {[%emt 0:04:53]} Nb6 {[%emt 0:00:20]} 51. Ra3 {[%emt 0:00:29]} a4 {[%emt 0:00:50]} 52. Rf3 {[%emt 0:03:31]} Rf7 {[%emt 0:02:26]} 53. Ra3 {[%emt 0:00:05]} 1/2-1/2

[Event "FIDE Open Sachove Univerzity QCC"]
[Site "Ceske Budejovice"]
[Date "2020.07.01"]
[Round "1.6"]
[White "Barta, David"]
[Black "Karweit, Alex W"]
[Result "1/2-1/2"]
[ECO "D02"]
[WhiteElo "1541"]
[BlackElo "1579"]
[Annotator "NA"]
[PlyCount "58"]
[EventDate "2020.07.01"]
[EventType "swiss"]
[EventCountry "CZE"]
[SourceTitle "playchess.com"]
[Source "ChessBase"]
[SourceQuality "1"]
[TimeControl "40/5400+30:1800+30"]

1. d4 {[%emt 0:00:00]} d5 {[%emt 0:00:00]} 2. Nf3 {[%emt 0:00:00]} Nf6 {[%emt 0:00:00]} 3. g3 {[%emt 0:00:00]} e6 {[%emt 0:00:13]} 4. Bg2 {[%emt 0:00:06]} Bb4+ {[%emt 0:00:23]} 5. Bd2 {[%emt 0:00:25]} Be7 {[%emt 0:00:05]} 6. Bf4 {[%emt 0:00:43]} O-O {[%emt 0:00:28]} 7. O-O {[%emt 0:00:29]} b6 {[%emt 0:00:58]} 8. Nbd2 {[%emt 0:01:38]} Nbd7 {[%emt 0:01:52]} 9. c4 {[%emt 0:02:10]} c5 {[%emt 0:04:23]} 10. e3 {[%emt 0:00:49]} cxd4 {[%emt 0:05:21]} 11. exd4 {[%emt 0:00:25]} Bb7 {[%emt 0:02:59]} 12. Be5 {[%emt 0:06:25]} dxc4 {[%emt 0:04:58]} 13. Nxc4 {[%emt 0:01:26]} Nd5 {[%emt 0:01:30]} 14. Qd3 {[%emt 0:06:20]} Ba6 {[%emt 0:04:22]} 15. Rac1 {[%emt 0:01:27]} Bf6 {[%emt 0:03:14]} 16. Rfe1 {[%emt 0:05:00]} Qe7 {[%emt 0:07:16]} 17. Qb3 {[%emt 0:08:19]} Qb4 {[%emt 0:05:21]} 18. Qxb4 {[%emt 0:03:25]} Nxb4 {[%emt 0:00:07]} 19. Bd6 {[%emt 0:06:03]} Nd3 {[%emt 0:00:32]} 20. Nfe5 {[%emt 0:08:13]} Bxe5 {[%emt 0:01:52]} 21. Bxf8 {[%emt 0:07:37]} Rxf8 {[%emt 0:00:49]} 22. Nxe5 {[%emt 0:00:39]} N7xe5 {[%emt 0:00:34]} 23. dxe5 {[%emt 0:00:31]} Nxe1 {[%emt 0:00:27]} 24. Rxe1 {[%emt 0:00:09]} Rd8 {[%emt 0:00:27]} 25. Rc1 {[%emt 0:00:57]} Rd2 {[%emt 0:00:31]} 26. Bf1 {[%emt 0:01:05]} b5 {[%emt 0:04:12]} 27. Bxb5 {[%emt 0:00:19]} Bb7 {[%emt 0:00:04]} 28. Bf1 {[%emt 0:08:46]} Rxb2 {[%emt 0:03:03]} 29. a4 {[%emt 0:03:19]} g5 1/2-1/2

[Event "FIDE Open Sachove Univerzity QCC"]
[Site "Ceske Budejovice"]
[Date "2020.07.01"]
[Round "1.7"]
[White "Simacek, Vaclav"]
[Black "Motejzik, Jaroslav"]
[Result "1-0"]
[ECO "C14"]
[WhiteElo "1816"]
[BlackElo "1396"]
[Annotator "NA"]
[PlyCount "37"]
[EventDate "2020.07.01"]
[EventType "swiss"]
[EventCountry "CZE"]
[SourceTitle "playchess.com"]
[Source "ChessBase"]
[SourceQuality "1"]
[TimeControl "40/5400+30:1800+30"]

1. e4 {[%emt 0:00:00]} e6 {[%emt 0:00:00]} 2. d4 {[%emt 0:00:12]} d5 {[%emt 0:00:00]} 3. Nc3 {[%emt 0:00:04]} Nf6 {[%emt 0:00:12]} 4. Bg5 {[%emt 0:00:48]} Be7 {[%emt 0:00:36]} 5. e5 {[%emt 0:00:15]} Nfd7 {[%emt 0:00:08]} 6. h4 {[%emt 0:00:27]} c5 {[%emt 0:01:34]} 7. Nb5 {[%emt 0:03:42]} Qb6 {[%emt 0:04:35]} 8. Bxe7 {[%emt 0:00:50]} Kxe7 {[%emt 0:00:23]} 9. Qg4 {[%emt 0:02:36]} Kf8 {[%emt 0:06:53]} 10. O-O-O {[%emt 0:01:18]} cxd4 {[%emt 0:05:12]} 11. f4 {[%emt 0:00:12]} Nc5 {[%emt 0:02:33]} 12. Nf3 {[%emt 0:01:14]} Ne4 {[%emt 0:03:31]} 13. Ng5 {[%emt 0:01:19]} Nf2 {[%emt 0:04:35]} 14. Qh5 {[%emt 0:00:35]} g6 {[%emt 0:02:03]} 15. Qh6+ {[%emt 0:00:15]} Kg8 {[%emt 0:03:39]} 16. Be2 {[%emt 0:00:13]} d3 {[%emt 0:03:51]} 17. Nd6 {[%emt 0:00:49]} Qe3+ {[%emt 0:05:16]} 18. Kb1 {[%emt 0:00:48]} dxe2 {[%emt 0:02:00]} 19. Ne8 {[%emt 0:00:23]} 1-0

[Event "FIDE Open Sachove Univerzity QCC"]
[Site "Ceske Budejovice"]
[Date "2020.07.01"]
[Round "1.8"]
[White "Gorej, Vojtech"]
[Black "Straka, Zdenek"]
[Result "0-1"]
[ECO "C03"]
[WhiteElo "1395"]
[BlackElo "1812"]
[Annotator "NA"]
[PlyCount "90"]
[EventDate "2020.07.01"]
[EventType "swiss"]
[EventCountry "CZE"]
[SourceTitle "playchess.com"]
[Source "ChessBase"]
[SourceQuality "1"]
[TimeControl "40/5400+30:1800+30"]

1. e4 {[%emt 0:00:01]} e6 {[%emt 0:00:00]} 2. d4 {[%emt 0:00:31]} d5 {[%emt 0:00:00]} 3. Nd2 {[%emt 0:00:51]} a6 {[%emt 0:00:00]} 4. e5 {[%emt 0:03:57]} c5 {[%emt 0:02:38]} 5. c3 {[%emt 0:02:27]} cxd4 {[%emt 0:02:55]} 6. cxd4 {[%emt 0:01:29]} Nc6 {[%emt 0:00:55]} 7. Ndf3 {[%emt 0:01:05]} Bd7 {[%emt 0:01:55]} 8. Bd3 {[%emt 0:04:01]} Nb4 {[%emt 0:05:01]} 9. Bb1 {[%emt 0:01:53]} Rc8 $14 {[%emt 0:01:12]} 10. a3 {[%emt 0:02:45]} Qc7 {[%emt 0:04:59]} 11. Be3 {[%emt 0:05:40]} Nc2+ {[%emt 0:00:54]} 12. Bxc2 {[%emt 0:03:04]} Qxc2 {[%emt 0:00:04]} 13. Qxc2 {[%emt 0:01:50]} Rxc2 {[%emt 0:00:02]} 14. b4 {[%emt 0:01:21]} Ne7 {[%emt 0:08:49]} 15. Ne2 {[%emt 0:04:21]} Nf5 {[%emt 0:05:13]} 16. Bd2 {[%emt 0:03:19]} Rc4 {[%emt 0:08:44]} 17. Rc1 {[%emt 0:02:07]} Rxc1+ {[%emt 0:03:55]} 18. Nxc1 {[%emt 0:00:36]} Be7 {[%emt 0:03:51]} 19. Nd3 {[%emt 0:00:53]} b6 {[%emt 0:01:37]} 20. g4 {[%emt 0:01:18]} Nh4 {[%emt 0:01:59]} 21. Nxh4 {[%emt 0:01:15]} Bxh4 {[%emt 0:00:02]} 22. g5 {[%emt 0:00:46]} Bb5 {[%emt 0:03:49]} 23. Nb2 {[%emt 0:01:02]} f6 {[%emt 0:03:16]} 24. a4 {[%emt 0:00:42]} Bc6 {[%emt 0:06:00]} 25. gxf6 {[%emt 0:00:54]} gxf6 {[%emt 0:00:15]} 26. Bf4 {[%emt 0:00:36]} Rg8 {[%emt 0:06:15]} 27. Kf1 {[%emt 0:01:40]} Kd7 {[%emt 0:06:03]} 28. Rg1 {[%emt 0:00:22]} Rxg1+ {[%emt 0:00:21]} 29. Kxg1 {[%emt 0:00:55]} fxe5 {[%emt 0:00:13]} 30. Bxe5 {[%emt 0:00:20]} Be7 {[%emt 0:00:20]} 31. a5 {[%emt 0:01:15]} bxa5 {[%emt 0:06:59]} 32. bxa5 {[%emt 0:00:07]} Bb5 {[%emt 0:00:23]} 33. f4 {[%emt 0:01:38]} Bd8 {[%emt 0:01:42]} 34. Kf2 {[%emt 0:00:43]} Bxa5 {[%emt 0:00:16]} 35. Nd1 {[%emt 0:00:15]} Bd3 {[%emt 0:05:10]} 36. Ke3 {[%emt 0:01:03]} Bf5 {[%emt 0:00:42]} 37. Nb2 {[%emt 0:01:26]} Bc2 {[%emt 0:02:02]} 38. Nd3 {[%emt 0:01:45]} Bxd3 {[%emt 0:02:30]} 39. Kxd3 {[%emt 0:00:03]} Kc6 {[%emt 0:00:17]} 40. Ke3 {[%emt 0:01:47]} Kb5 {[%emt 0:02:00]} 41. f5 {[%emt 0:30:29]} exf5 {[%emt 0:30:22]} 42. Kf4 {[%emt 0:00:08]} Bc3 {[%emt 0:01:15]} 43. Kxf5 {[%emt 0:00:14]} a5 {[%emt 0:00:26]} 44. Ke6 {[%emt 0:00:49]} Kc4 {[%emt 0:00:17]} 45. Kf7 {[%emt 0:00:21]} a4 {[%emt 0:00:10]} 0-1

[Event "FIDE Open Sachove Univerzity QCC"]
[Site "Ceske Budejovice"]
[Date "2020.07.01"]
[Round "1.9"]
[White "Pokora, Lubomir"]
[Black "Svadlenka, Michal"]
[Result "1-0"]
[ECO "A01"]
[WhiteElo "1800"]
[BlackElo "1395"]
[Annotator "NA RC"]
[PlyCount "101"]
[EventDate "2020.07.01"]
[EventType "swiss"]
[EventCountry "CZE"]
[SourceTitle "playchess.com"]
[Source "ChessBase"]
[SourceQuality "1"]
[TimeControl "40/5400+30:1800+30"]

1. b3 {[%emt 0:00:00]} e5 {[%emt 0:00:00]} 2. Bb2 {[%emt 0:00:00]} Nc6 {[%emt 0:00:16]} 3. e3 {[%emt 0:00:18]} d5 {[%emt 0:00:42]} 4. Bb5 {[%emt 0:00:34]} Bd6 {[%emt 0:01:07]} 5. Nf3 {[%emt 0:01:21]} Bg4 {[%emt 0:01:18]} 6. h3 {[%emt 0:00:58]} Bxf3 {[%emt 0:01:28]} 7. Qxf3 {[%emt 0:01:46]} Nf6 {[%emt 0:01:16]} 8. c4 {[%emt 0:07:57] A01: Nimzowitsch-Larsen Opening.} e4 {[%emt 0:05:34]} 9. Qf5 {[%emt 0:05:53] [#]} dxc4 $146 {[%emt 0:03:45]} (9... Qd7 $11 {remains equal.} 10. Qg5 (10. Qxd7+ Nxd7 11. cxd5 Nb4 $11) 10... Be7) ({Predecessor:} 9... O-O 10. Bxf6 Qxf6 11. Qxf6 gxf6 12. Bxc6 bxc6 13. cxd5 cxd5 14. Nc3 c6 15. Rc1 Rac8 {1-0 (77) Dimitrov,D (2096)-Druchenko,M (1727) Pardubice 2018}) 10. bxc4 {[%emt 0:01:55]} Be7 {[%emt 0:05:07]} 11. O-O {[%emt 0:04:15]} O-O {[%emt 0:03:35]} 12. Bxc6 {[%emt 0:05:42]} bxc6 {[%emt 0:00:36]} 13. Bd4 {[%emt 0:11:11]} Qd7 {[%emt 0:07:22]} 14. Qa5 {[%emt 0:03:42]} Rfb8 {[%emt 0:04:48]} 15. f3 {[%emt 0:16:14]} Bb4 {[%emt 0:03:12]} 16. Qg5 {[%emt 0:04:34]} h6 {[%emt 0:01:15]} 17. Qg3 {[%emt 0:01:58]} Bd6 {[%emt 0:08:55]} 18. Qh4 {[%emt 0:05:39]} Be7 {[%emt 0:04:01]} 19. fxe4 {[%emt 0:03:35]} c5 {[%emt 0:01:02]} (19... Qe6 $1 $11 {remains equal.}) 20. Bc3 {[%emt 0:02:44]} Qe6 {[%emt 0:01:00]} 21. d3 {[%emt 0:06:08]} Rd8 {[%emt 0:06:35]} 22. e5 {[%emt 0:02:39]} Nd7 {[%emt 0:01:10]} 23. Qg3 {[%emt 0:02:23]} Nb6 {[%emt 0:01:06]} 24. e4 {[%emt 0:01:50]} Rd7 {[%emt 0:03:55]} 25. a4 {[%emt 0:00:31]} Rad8 {[%emt 0:01:32]} 26. Rf3 {[%emt 0:00:15]} c6 {[%emt 0:07:42]} 27. Nd2 {[%emt 0:00:46]} Bg5 {[%emt 0:03:21]} 28. Nb3 {[%emt 0:03:05]} Be7 {[%emt 0:00:54]} 29. a5 {[%emt 0:00:11]} Na8 {[%emt 0:00:34]} 30. Rd1 {[%emt 0:01:11]} Nc7 {[%emt 0:02:53]} 31. Rdf1 {[%emt 0:03:15]} Bf8 {[%emt 0:00:44]} 32. Nc1 {[%emt 0:00:43]} Na6 {[%emt 0:02:06]} 33. Rf6 {[%emt 0:00:19]} Qe8 {[%emt 0:00:49]} 34. Rxh6 {[%emt 0:02:11]} g6 {[%emt 0:00:30]} 35. Rh4 {[%emt 0:00:30]} Bg7 {[%emt 0:00:42]} 36. Qg5 $2 {[%emt 0:00:24]} (36. Rg4 $18) 36... Qe7 {[%emt 0:00:54]} 37. Qg3 {[%emt 0:00:15]} (37. Qxe7 $16 Rxe7 38. Rhf4) 37... Nc7 {[%emt 0:00:30]} 38. Rg4 {[%emt 0:00:42]} Ne6 {[%emt 0:00:30]} 39. h4 {[%emt 0:00:15]} Nf8 {[%emt 0:02:28]} 40. h5 {[%emt 0:00:16]} Qe6 {[%emt 0:00:39]} 41. Rf3 {[%emt 0:31:54]} a6 {[%emt 0:31:16]} 42. Ne2 {[%emt 0:00:00]} (42. Kh2 $142) 42... Rb8 {[%emt 0:00:00]} 43. Nf4 {[%emt 0:00:00]} Qe7 {[%emt 0:00:00]} 44. hxg6 $18 {[%emt 0:00:00]} Nxg6 {[%emt 0:00:00]} 45. Nxg6 {[%emt 0:00:00]} fxg6 {[%emt 0:00:00]} 46. Rxg6 {[%emt 0:00:00]} Rb1+ {[%emt 0:00:00]} 47. Kh2 {[%emt 0:00:00]} Rc1 {[%emt 0:00:00]} 48. e6 {[%emt 0:00:00]} Rb7 {[%emt 0:00:00]} 49. Bxg7 {[%emt 0:00:00]} Qxg7 {[%emt 0:00:00]} 50. Rxg7+ {[%emt 0:00:00]} Rxg7 {[%emt 0:00:00]} 51. Qb8+ {[%emt 0:00:00]} 1-0

[Event "FIDE Open Sachove Univerzity QCC"]
[Site "Ceske Budejovice"]
[Date "2020.07.01"]
[Round "1.10"]
[White "Havelkova, Beata"]
[Black "Valtr, Filip"]
[Result "0-1"]
[ECO "B22"]
[WhiteElo "1394"]
[BlackElo "1784"]
[Annotator "NA"]
[PlyCount "58"]
[EventDate "2020.07.01"]
[EventType "swiss"]
[EventCountry "CZE"]
[SourceTitle "playchess.com"]
[Source "ChessBase"]
[SourceQuality "1"]
[TimeControl "40/5400+30:1800+30"]

1. e4 {[%emt 0:00:00]} c5 {[%emt 0:00:00]} 2. c3 {[%emt 0:00:00]} d5 {[%emt 0:00:00]} 3. exd5 {[%emt 0:00:00]} Qxd5 {[%emt 0:00:00]} 4. d4 {[%emt 0:00:00]} cxd4 {[%emt 0:02:03]} 5. cxd4 {[%emt 0:00:01]} e6 {[%emt 0:01:25]} 6. Nc3 {[%emt 0:03:38]} Qd8 {[%emt 0:00:48]} 7. Nf3 {[%emt 0:00:58]} Nf6 {[%emt 0:00:13]} 8. h3 {[%emt 0:06:47]} Nc6 {[%emt 0:01:45]} 9. Be3 {[%emt 0:00:48]} a6 {[%emt 0:04:36]} 10. a3 {[%emt 0:04:07]} b5 {[%emt 0:02:28]} 11. Bd3 {[%emt 0:00:41]} Bb7 {[%emt 0:00:38]} 12. O-O {[%emt 0:00:42]} Be7 {[%emt 0:01:07]} 13. Qc2 {[%emt 0:07:42]} Rc8 {[%emt 0:02:22]} 14. Rad1 {[%emt 0:02:21]} Qc7 {[%emt 0:15:15]} 15. Qb1 {[%emt 0:04:24]} O-O {[%emt 0:02:36]} 16. Ng5 {[%emt 0:04:44]} g6 {[%emt 0:04:10]} 17. Nge4 {[%emt 0:10:04]} Rfd8 {[%emt 0:07:37]} 18. Ne2 {[%emt 0:05:09]} Nxe4 {[%emt 0:07:55]} 19. Bxe4 {[%emt 0:01:20]} Bf6 {[%emt 0:11:17]} 20. d5 {[%emt 0:05:12]} exd5 {[%emt 0:00:35]} 21. Bxd5 {[%emt 0:00:36]} Qe5 {[%emt 0:02:08]} 22. Nc3 {[%emt 0:04:39]} Qc7 {[%emt 0:23:12]} 23. Ne4 {[%emt 0:07:11]} Be5 {[%emt 0:02:29]} 24. Ng5 {[%emt 0:04:23]} Rd7 {[%emt 0:01:17]} 25. Qa2 {[%emt 0:07:07]} Nd8 {[%emt 0:01:15]} 26. Rc1 {[%emt 0:04:46]} Qd6 {[%emt 0:01:38]} 27. Rxc8 {[%emt 0:02:29]} Bxc8 {[%emt 0:00:02]} 28. Rd1 {[%emt 0:00:45]} Kg7 {[%emt 0:00:33]} 29. Bb3 {[%emt 0:01:14]} Qxd1+ {[%emt 0:00:19]} 0-1

[Event "FIDE Open Sachove Univerzity QCC"]
[Site "Ceske Budejovice"]
[Date "2020.07.01"]
[Round "1.11"]
[White "Pesek, Petr"]
[Black "Dusanek, Michal"]
[Result "0-1"]
[ECO "B30"]
[WhiteElo "1927"]
[BlackElo "1500"]
[Annotator "ChessBase"]
[PlyCount "80"]
[EventDate "2020.07.01"]
[EventType "swiss"]
[EventCountry "CZE"]
[SourceTitle "playchess.com"]
[Source "ChessBase"]
[SourceQuality "1"]
[TimeControl "40/5400+30:1800+30"]

1. e4 {[%emt 0:00:00]} c5 {[%emt 0:00:00]} 2. Nf3 {[%emt 0:00:00]} Nc6 {[%emt 0:00:18]} 3. Bc4 {[%emt 0:00:10]} g6 {[%emt 0:00:08]} 4. c3 {[%emt 0:00:31]} Bg7 {[%emt 0:00:10]} 5. d4 {[%emt 0:00:18]} cxd4 {[%emt 0:00:08]} 6. cxd4 {[%emt 0:00:28]} e6 {[%emt 0:01:23]} 7. e5 {[%emt 0:00:33]} Nge7 {[%emt 0:00:44]} 8. O-O {[%emt 0:00:49]} O-O {[%emt 0:00:14]} 9. d5 {[%emt 0:01:31]} Nxe5 {[%emt 0:01:06]} 10. Nxe5 {[%emt 0:00:22]} Bxe5 {[%emt 0:00:06]} 11. d6 {[%emt 0:00:40]} Nc6 {[%emt 0:00:27]} 12. Nc3 {[%emt 0:00:47]} a6 {[%emt 0:10:28]} 13. Be3 {[%emt 0:00:58]} b5 {[%emt 0:01:44]} 14. Bd3 {[%emt 0:01:24]} Bb7 {[%emt 0:00:16]} 15. Be4 {[%emt 0:00:55]} Rc8 {[%emt 0:03:23]} 16. Qf3 {[%emt 0:05:01]} f5 {[%emt 0:02:12]} 17. Bxc6 {[%emt 0:01:43]} Bxc6 {[%emt 0:00:57]} 18. Qh3 {[%emt 0:04:17]} Bxd6 {[%emt 0:01:23]} 19. Qh6 {[%emt 0:01:57]} Be5 {[%emt 0:01:02]} 20. Bg5 {[%emt 0:01:15]} Bf6 {[%emt 0:00:43]} 21. Bxf6 {[%emt 0:00:58]} Qxf6 {[%emt 0:00:20]} 22. Qc1 {[%emt 0:00:28]} b4 {[%emt 0:01:17]} 23. Ne2 {[%emt 0:01:03]} Bxg2 {[%emt 0:00:56]} 24. Qd1 {[%emt 0:01:29]} Bxf1 {[%emt 0:00:39]} 25. Qxf1 {[%emt 0:00:35]} d5 {[%emt 0:01:06]} 26. Qg2 {[%emt 0:01:28]} Qxb2 {[%emt 0:00:49]} 27. Re1 {[%emt 0:02:16]} Qd2 {[%emt 0:02:28]} 28. Kf1 {[%emt 0:00:49]} Qxa2 {[%emt 0:01:06]} 29. Nc1 {[%emt 0:00:56]} Qc4+ {[%emt 0:01:31]} 30. Kg1 {[%emt 0:00:45]} Qxc1 {[%emt 0:00:23]} 31. Rxc1 {[%emt 0:00:37]} Rxc1+ {[%emt 0:00:14]} 32. Qf1 {[%emt 0:00:10]} Rfc8 {[%emt 0:00:17]} 33. Kg2 {[%emt 0:00:11]} Rxf1 {[%emt 0:00:06]} 34. Kxf1 {[%emt 0:00:07]} b3 {[%emt 0:00:11]} 35. Kg2 {[%emt 0:00:11]} b2 {[%emt 0:00:04]} 36. Kf3 {[%emt 0:00:09]} b1=Q 37. Kf4 {[%emt 0:00:20]} Qe4+ {[%emt 0:00:28]} 38. Kg3 {[%emt 0:00:10]} Rc3+ {[%emt 0:00:10]} 39. f3 {[%emt 0:00:10]} Qxf3+ {[%emt 0:00:00]} 40. Kh4 {[%emt 0:00:26]} Qg4# {[%emt 0:00:00]} 0-1

[Event "FIDE Open Sachove Univerzity QCC"]
[Site "Ceske Budejovice"]
[Date "2020.07.01"]
[Round "1.11"]
[White "Petkov, Andon"]
[Black "Svejda, Karel"]
[Result "1-0"]
[ECO "B84"]
[WhiteElo "1776"]
[BlackElo "1387"]
[Annotator "NA"]
[PlyCount "57"]
[EventDate "2020.07.01"]
[EventType "swiss"]
[EventCountry "CZE"]
[SourceTitle "playchess.com"]
[Source "ChessBase"]
[SourceQuality "1"]
[TimeControl "40/5400+30:1800+30"]

1. e4 {[%emt 0:02:33]} c5 {[%emt 0:00:00]} 2. Nf3 {[%emt 0:00:32]} e6 {[%emt 0:00:00]} 3. d4 {[%emt 0:00:13]} cxd4 {[%emt 0:00:00]} 4. Nxd4 {[%emt 0:00:08]} Nf6 {[%emt 0:00:05]} 5. Nc3 {[%emt 0:00:04]} d6 {[%emt 0:00:06]} 6. Be3 {[%emt 0:02:00]} a6 {[%emt 0:00:25]} 7. Be2 {[%emt 0:00:55]} Be7 {[%emt 0:00:20]} 8. O-O {[%emt 0:01:06]} O-O {[%emt 0:00:24]} 9. Bf3 {[%emt 0:02:02]} Qc7 {[%emt 0:02:46]} 10. Nce2 {[%emt 0:03:06]} Nc6 {[%emt 0:03:40]} 11. c3 {[%emt 0:03:53]} Ne5 {[%emt 0:05:52]} 12. Ng3 {[%emt 0:01:40]} Bd7 {[%emt 0:10:36]} 13. Be2 {[%emt 0:06:21]} Rfd8 {[%emt 0:14:54]} 14. Qc2 {[%emt 0:14:05]} Rac8 {[%emt 0:04:32]} 15. Rad1 {[%emt 0:01:34]} Nc4 {[%emt 0:12:23]} 16. Bc1 {[%emt 0:02:01]} Qa5 {[%emt 0:16:55]} 17. Qb1 {[%emt 0:04:17]} b5 {[%emt 0:04:56]} 18. Bd3 {[%emt 0:06:36]} b4 {[%emt 0:09:37]} 19. Bxc4 {[%emt 0:07:00]} Rxc4 {[%emt 0:01:00]} 20. Bd2 {[%emt 0:03:55]} bxc3 {[%emt 0:09:24]} 21. Bxc3 {[%emt 0:01:10]} Qc5 {[%emt 0:00:34]} 22. Qd3 {[%emt 0:02:09]} Rc8 {[%emt 0:01:17]} 23. Rfe1 {[%emt 0:02:51]} Ng4 {[%emt 0:01:08]} 24. Qe2 {[%emt 0:02:00]} Ne5 {[%emt 0:00:12]} 25. Nf3 {[%emt 0:02:46]} Bf6 {[%emt 0:00:42]} 26. Nd4 {[%emt 0:04:40]} h6 {[%emt 0:00:30]} 27. Nb3 {[%emt 0:01:52]} Qc7 {[%emt 0:00:06]} 28. Qd2 {[%emt 0:02:11]} Be7 {[%emt 0:00:38]} 29. Bxe5 {[%emt 0:01:11]} 1-0

[Event "FIDE Open Sachove Univerzity QCC"]
[Site "Ceske Budejovice"]
[Date "2020.07.01"]
[Round "1.12"]
[White "Janouskova, Adela"]
[Black "Sobotka, Radim"]
[Result "1/2-1/2"]
[ECO "C42"]
[WhiteElo "1377"]
[BlackElo "1764"]
[Annotator "NA"]
[PlyCount "53"]
[EventDate "2020.07.01"]
[EventType "swiss"]
[EventCountry "CZE"]
[SourceTitle "playchess.com"]
[Source "ChessBase"]
[SourceQuality "1"]
[TimeControl "40/5400+30:1800+30"]

1. e4 {[%emt 0:00:00]} e5 {[%emt 0:00:00]} 2. Nf3 {[%emt 0:00:00]} Nf6 {[%emt 0:00:00]} 3. Nxe5 {[%emt 0:00:05]} d6 {[%emt 0:00:33]} 4. Nf3 {[%emt 0:00:08]} Nxe4 {[%emt 0:00:10]} 5. Nc3 {[%emt 0:00:26]} Nxc3 {[%emt 0:01:15]} 6. dxc3 {[%emt 0:00:07]} Be7 {[%emt 0:00:38]} 7. Bf4 {[%emt 0:00:50]} O-O {[%emt 0:02:18]} 8. Qd2 {[%emt 0:00:12]} Re8 {[%emt 0:02:12]} 9. O-O-O {[%emt 0:00:11]} Nc6 {[%emt 0:00:37]} 10. h4 {[%emt 0:02:03]} Bg4 {[%emt 0:02:23]} 11. Re1 {[%emt 0:01:49]} Qd7 {[%emt 0:04:01]} 12. Bd3 {[%emt 0:02:13]} Bf6 {[%emt 0:02:20]} 13. Ng5 {[%emt 0:03:42]} Bf5 {[%emt 0:05:59]} 14. g4 {[%emt 0:06:38]} Bxd3 {[%emt 0:03:15]} 15. Qxd3 {[%emt 0:00:21]} Rxe1+ {[%emt 0:09:28]} 16. Rxe1 {[%emt 0:00:09]} Bxg5 {[%emt 0:00:35]} 17. Bxg5 {[%emt 0:00:13]} Qxg4 {[%emt 0:05:34]} 18. Qe3 {[%emt 0:04:41]} f6 {[%emt 0:03:22]} 19. f3 {[%emt 0:01:20]} Qh3 {[%emt 0:03:36]} 20. Bf4 {[%emt 0:01:37]} Qxh4 {[%emt 0:05:04]} 21. Qe6+ {[%emt 0:04:30]} Kf8 {[%emt 0:00:21]} 22. Bxd6+ {[%emt 0:08:48]} cxd6 {[%emt 0:00:34]} 23. Qxd6+ {[%emt 0:00:10]} Kg8 {[%emt 0:00:49]} 24. Qe6+ {[%emt 0:00:15]} Kf8 {[%emt 0:00:31]} 25. Qd6+ {[%emt 0:00:17]} Kf7 {[%emt 0:02:41]} 26. Qd7+ {[%emt 0:00:41]} Kf8 {[%emt 0:03:39]} 27. Qd6+ {[%emt 0:00:21]} 1/2-1/2